bitfinex/quotes_ETHUSD_20241129
["timestamp","ask_amount","ask_price","bid_price","bid_amount"]
[1732901342603,0.55543768,3584.3,3584.1,0.41803775]
[1732901342831,0.55543768,3584.3,3584.2,0.41803775]
[1732901344380,2.78973,3584.6,3584.2,0.41803775]
[1732901344562,2.78877,3585.9,3585.3,4.3484]
[1732901344766,0.9241,3586.7,3585.4,0.41796523]
[1732901344767,2.78879,3585.8,3585.4,0.41796523]
[1732901344925,2.78891,3585.7,3585.5,0.41796523]
[1732901345275,0.9241,3585.9,3584.4,1.3484]
[1732901345573,2.78915,3585.4,3584.6,2.78969]
[1732901345791,3.71307,3585.6,3584.7,0.41742814]
[1732901345997,0.9241,3585.6,3584.8,0.41742814]
[1732901346273,0.9241,3585.6,3584.9,0.41742814]
[1732901346521,0.9241,3585.6,3585.0,0.41742814]
[1732901346651,0.9241,3585.6,3584.8,2.78949]
[1732901346652,0.9241,3585.6,3585.1,0.41742814]
[1732901346829,0.9241,3585.6,3585.2,0.41742814]
[1732901347032,0.9241,3585.6,3585.3,0.41742814]
[1732901347227,0.9241,3585.6,3585.0,2.78934]
[1732901347576,0.9241,3585.6,3585.1,0.41696905]
[1732901347772,0.9241,3585.6,3585.2,0.41696905]
[1732901347977,0.9241,3585.6,3585.3,0.41696905]
[1732901348182,0.9241,3585.6,3585.4,0.41696905]
[1732901348473,0.9241,3585.6,3585.5,0.41696905]
[1732901348676,0.9241,3586.4,3585.6,2.78893]
[1732901348976,0.9241,3586.4,3585.8,2.78876]
[1732901349145,0.9241,3586.4,3585.9,0.41666282]
[1732901349346,0.5666821,3586.1,3585.8,2.78876]
[1732901349579,0.9241,3586.4,3585.9,0.41627152]
[1732901349748,0.9241,3586.4,3585.6,2.78887]
[1732901349949,0.9241,3586.4,3585.7,0.41626851]
[1732901350158,0.9241,3586.4,3585.8,3.20503851]
[1732901350358,0.9241,3586.4,3585.9,0.41626851]
[1732901350561,0.9241,3586.4,3585.8,2.81665457]
[1732901350768,0.56115758,3586.2,3585.8,1.369]
[1732901350933,0.9241,3587.1,3586.2,3.55]
[1732901351275,0.9241,3587.1,3586.7,2.80629048]
[1732901351709,0.9241,3587.1,3586.7,5.59435048]
[1732901352010,0.9241,3587.1,3586.3,2.80629048]
[1732901352156,0.9241,3587.1,3585.9,5.59498048]
[1732901352361,0.9241,3587.1,3586.0,3.20376111]
[1732901352561,0.9241,3587.1,3586.0,2.78859]
[1732901352991,0.9241,3587.1,3585.9,2.80629048]
[1732901353187,2.78784,3587.0,3585.9,2.80629048]
[1732901353389,0.9241,3587.1,3586.0,2.78861]
[1732901353589,3.71193,3587.1,3585.9,2.80629048]
[1732901353980,2.78784,3587.0,3585.9,2.80629048]
[1732901354389,0.9241,3587.1,3586.4,2.80629048]
[1732901355330,0.56142073,3586.7,3586.4,2.80629048]
[1732901356379,0.56142073,3586.7,3586.4,5.59458048]
[1732901356595,0.56142073,3586.7,3586.4,2.80629048]
[1732901357291,0.56142073,3586.7,3586.4,5.59452048]
[1732901357511,0.56142073,3586.7,3586.5,0.55945205]
[1732901357722,0.56142073,3586.7,3586.4,5.59452048]
[1732901357884,0.56142073,3586.7,3586.4,2.80629048]
[1732901358086,0.56142073,3586.7,3586.6,2.78815]
[1732901358312,0.9253,3587.4,3586.6,2.78815]
[1732901358512,0.9253,3587.4,3586.4,2.80629048]
[1732901359384,0.9253,3587.4,3586.4,3.36577053]
[1732901359581,0.9253,3587.4,3586.4,6.15407053]
[1732901359886,0.54786496,3586.8,3586.5,2.81609829]
[1732901360220,0.54786496,3586.8,3586.6,2.78814]
[1732901360404,0.54786496,3586.8,3586.7,2.78807]
[1732901360611,0.54786496,3586.8,3586.7,3.68228205]
[1732901360822,0.54786496,3586.8,3586.7,0.89421205]
[1732901361489,0.54786496,3586.8,3586.5,3.0]
[1732901361712,0.54786496,3586.8,3586.4,2.80629048]
[1732901362228,0.54786496,3586.8,3586.5,0.2788]
[1732901363397,0.54786496,3586.8,3585.8,2.78872]
[1732901363398,0.9253,3586.7,3586.1,0.2788]
[1732901363580,0.9253,3586.7,3586.1,0.69308814]
[1732901363785,0.9253,3586.7,3586.1,0.2788]
[1732901364724,3.71338,3586.7,3586.1,0.2788]
[1732901364928,0.9253,3586.7,3586.1,0.2788]
[1732901365530,0.9253,3586.7,3586.2,0.69335644]
[1732901365697,0.9253,3586.7,3586.2,0.2788]
[1732901366513,0.9253,3586.7,3586.1,0.2788]
[1732901367628,0.9253,3586.7,3586.2,0.41485645]
[1732901367786,0.9253,3586.7,3586.1,0.2788]
[1732901367986,0.9253,3586.7,3586.2,0.41485111]
[1732901368187,0.9253,3586.7,3586.3,0.41501147]
[1732901368497,0.9253,3586.7,3586.1,0.2788]
[1732901368699,0.9253,3586.7,3586.2,0.41506297]
[1732901368896,0.9253,3586.7,3586.3,0.41506297]
[1732901369083,0.9253,3586.7,3586.1,0.2788]
[1732901369324,0.54786496,3586.8,3586.4,3.08509048]
[1732901369630,0.54786496,3586.8,3586.5,0.4152818]
[1732901369826,0.54786496,3586.8,3586.6,0.4152818]
[1732901370132,0.54786496,3586.8,3586.7,0.4152818]
[1732901371270,0.9253,3587.3,3586.7,0.4152818]
[1732901371567,0.5593832,3587.0,3586.8,0.4152818]
[1732901371771,0.5593832,3587.0,3586.9,0.4152818]
[1732901371922,2.78731,3587.7,3586.9,0.4152818]
[1732901372263,2.78731,3587.7,3587.0,0.4152818]
[1732901372473,0.9253,3587.8,3587.1,0.4152818]
[1732901372669,3.71253,3587.8,3587.2,0.4152818]
[1732901372839,3.71253,3587.8,3586.8,3.08509048]
[1732901372840,0.9253,3587.8,3587.3,0.4152818]
[1732901373038,0.9253,3587.8,3587.4,0.4152818]
[1732901373242,0.54627309,3587.5,3586.8,5.87308048]
[1732901373438,0.54627309,3587.5,3586.9,0.41609749]
[1732901373651,0.54627309,3587.5,3587.0,1.12284201]
[1732901373971,0.54627309,3587.5,3587.1,0.41609749]
[1732901374267,0.54627309,3587.5,3587.2,1.75609749]
[1732901374468,0.54627309,3587.5,3587.3,0.41609749]
[1732901374627,0.54627309,3587.5,3587.4,0.41609749]
[1732901376431,0.54627309,3587.5,3587.4,0.41662591]
[1732901378120,4.25902309,3587.5,3587.4,0.41662591]
[1732901378682,0.9253,3587.4,3585.9,1.368]
[1732901378882,3.33375309,3587.5,3586.0,0.41709072]
[1732901378883,0.9253,3586.8,3586.0,0.41709072]
[1732901379078,3.7133,3586.8,3586.1,0.41709072]
[1732901379283,3.7133,3586.8,3586.2,0.41709072]
[1732901379524,2.78811,3586.7,3586.3,0.41709072]
[1732901379828,0.9253,3586.8,3586.4,0.41709072]
[1732901379987,0.9253,3586.8,3586.5,0.41709072]
[1732901380185,2.78807,3586.7,3586.6,0.41709072]
[1732901380391,2.78838,3586.4,3585.5,1.3549]
[1732901380695,3.3489679,3586.7,3585.6,0.2788]
[1732901380927,2.7883,3586.5,3585.6,0.2788]
[1732901381094,3.3489679,3586.7,3585.6,0.2788]
[1732901381305,2.78825,3586.5,3585.6,0.2788]
[1732901381616,3.3489679,3586.7,3585.6,0.2788]
[1732901381617,2.78831,3586.4,3585.6,0.2788]
[1732901381941,0.5608879,3586.7,3585.6,3.55311985]
[1732901381942,3.3489579,3586.7,3585.6,3.55311985]
[1732901382289,3.3489579,3586.7,3585.6,3.27431985]
[1732901382498,3.3489579,3586.7,3585.7,2.80629048]
[1732901383221,0.5608879,3586.7,3585.7,2.80629048]
[1732901383421,2.78825,3586.5,3585.7,2.80629048]
[1732901383724,0.5608879,3586.7,3585.7,3.59129731]
[1732901383725,3.3489679,3586.7,3585.7,3.59129731]
[1732901384230,2.78815,3586.6,3585.7,3.59129731]
[1732901384924,2.78825,3586.5,3585.7,3.59129731]
[1732901385126,0.5608879,3586.7,3585.7,3.59129731]
[1732901385427,0.5608879,3586.7,3585.8,4.3245]
[1732901385630,0.5608879,3586.7,3585.8,5.48495852]
[1732901385931,2.78817,3586.6,3585.8,5.48495852]
[1732901386427,0.5608879,3586.7,3585.8,5.48495852]
[1732901387336,3.3489679,3586.7,3585.8,5.48495852]
[1732901387530,0.5608879,3586.7,3586.2,1.3021]
[1732901387729,0.5608879,3586.7,3586.3,0.68970005]
[1732901387919,0.5608879,3586.7,3586.2,1.3021]
[1732901388231,0.5608879,3586.7,3586.3,0.26058006]
[1732901388735,3.71124,3587.6,3586.5,5.59451048]
[1732901389294,2.7873,3587.7,3586.6,1.3309]
[1732901389606,2.78688,3588.3,3586.5,5.59451048]
[1732901389607,0.9238,3588.3,3587.3,2.80629048]
[1732901389931,0.9238,3588.7,3587.8,2.80629048]
[1732901390129,3.71033,3588.7,3587.4,3.41371905]
[1732901390335,2.78711,3588.0,3587.2,1.3309]
[1732901390540,3.71099,3587.9,3587.2,1.3309]
[1732901390855,0.9238,3588.2,3587.3,0.55]
[1732901390990,3.71071,3588.2,3587.2,1.3309]
[1732901391192,0.9238,3588.2,3587.4,2.80629048]
[1732901391420,0.56582458,3588.3,3587.8,2.80629048]
[1732901391695,0.56582458,3588.3,3587.9,1.3427]
[1732901392803,0.9238,3588.6,3587.9,1.3427]
[1732901393519,0.5477145,3588.4,3587.9,1.3427]
[1732901394235,0.5477145,3588.4,3587.4,2.80629048]
[1732901394391,0.5477145,3588.4,3587.5,3.20512905]
[1732901394797,0.5477145,3588.4,3587.6,2.78736]
[1732901395489,0.9238,3588.6,3587.8,2.80629048]
[1732901395705,0.9238,3589.0,3588.1,2.78693]
[1732901396010,0.9238,3589.0,3588.2,2.81474537]
[1732901396402,0.9238,3589.0,3588.2,2.78688]
[1732901396606,0.9238,3589.3,3588.4,2.78668]
[1732901397027,0.54392255,3588.9,3588.2,2.80629048]
[1732901397231,0.54392255,3588.9,3588.3,2.78683]
[1732901397827,0.54392255,3588.9,3588.2,2.80629048]
[1732901397828,0.54392255,3588.9,3588.4,2.78674]
[1732901398526,0.54392255,3588.9,3588.2,2.80629048]
[1732901399117,0.54392255,3588.9,3588.2,5.59319048]
[1732901399376,0.54392255,3588.9,3588.5,2.78665]
[1732901399653,0.9238,3589.8,3588.8,2.80629048]
[1732901399829,0.9238,3590.4,3589.3,1.3946]
[1732901400152,3.70902,3590.4,3589.4,2.80629048]
[1732901400441,2.78529,3590.3,3589.3,4.3946]
[1732901400617,3.70905,3590.4,3589.4,0.69599516]
[1732901400816,3.70905,3590.4,3589.3,4.3946]
[1732901401014,0.56297906,3589.9,3589.3,4.3946]
[1732901401220,0.9238,3590.8,3589.8,2.80629048]
[1732901401420,0.9238,3591.2,3590.2,5.59164048]
[1732901401649,0.9238,3591.2,3589.9,4.302]
[1732901401650,2.78505,3590.6,3589.9,4.302]
[1732901401806,0.56270033,3590.7,3589.9,1.302]
[1732901402317,0.9238,3590.6,3589.7,3.0]
[1732901402505,2.78527,3590.4,3589.6,1.3762]
[1732901402705,3.70891,3590.6,3589.6,1.3762]
[1732901403069,0.9238,3590.6,3589.8,5.59193048]
[1732901403240,2.78511,3590.6,3589.8,2.80629048]
[1732901403448,2.78513,3590.5,3589.8,2.80629048]
[1732901403765,0.56270033,3590.7,3589.0,2.80629048]
[1732901403930,2.78606,3589.3,3588.6,2.80629048]
[1732901404135,2.7863,3589.0,3588.4,1.2696]
[1732901404453,0.9238,3589.7,3588.4,1.2696]
[1732901404454,2.78607,3589.3,3588.4,1.2696]
[1732901404654,2.78583,3589.6,3588.6,5.59288048]
[1732901405013,2.78591,3589.5,3588.6,2.80629048]
[1732901405217,2.7859,3589.5,3588.4,1.2696]
[1732901405430,2.78604,3589.4,3588.4,1.2696]
[1732901405653,2.78604,3589.4,3588.4,4.05633]
[1732901405861,2.78604,3589.4,3588.4,5.02128005]
[1732901406036,2.78582,3589.6,3588.5,2.78664]
[1732901406233,0.9238,3589.7,3588.9,2.78631]
[1732901406465,3.34888205,3589.8,3588.8,2.78638]
[1732901406620,2.78576,3589.7,3588.7,5.7865]
[1732901406950,2.78576,3589.7,3588.8,0.85927905]
[1732901407154,2.78576,3589.7,3588.8,3.64570905]
[1732901407321,2.78595,3589.5,3588.8,0.85927905]
[1732901407521,2.78602,3589.4,3588.7,3.0]
[1732901407717,0.9238,3589.4,3588.4,1.2696]
[1732901407916,2.78616,3589.2,3588.4,1.2696]
[1732901408466,2.78627,3589.1,3588.4,1.2696]
[1732901408639,3.70979,3589.4,3588.4,1.2696]
[1732901408839,2.78576,3589.7,3588.6,2.80629048]
[1732901411132,2.78482,3590.9,3590.0,1.04483705]
[1732901411379,3.70852,3591.1,3590.1,2.78538]
[1732901411725,2.7849,3590.8,3590.0,1.04483705]
[1732901411926,0.56505675,3590.9,3590.0,1.04483705]
[1732901412171,3.34991675,3590.9,3590.1,0.96367075]
[1732901412666,0.56505675,3590.9,3590.1,3.74908075]
[1732901412971,0.9238,3591.5,3590.5,2.78509]
[1732901413133,2.78452,3591.3,3590.4,1.9209]
[1732901413467,0.9238,3591.1,3589.7,1.3709]
[1732901413638,2.78499,3590.7,3589.7,4.15659]
[1732901413838,2.78495,3590.8,3589.8,0.694248]
[1732901414031,2.78495,3590.8,3589.8,3.479858]
[1732901414231,2.78494,3590.8,3589.8,3.479858]
[1732901414479,2.78497,3590.7,3589.8,0.694248]
[1732901414659,2.78485,3590.9,3589.8,0.694248]
[1732901414865,0.9238,3591.1,3589.9,1.06572385]
[1732901415048,0.9238,3591.1,3590.2,2.77303126]
[1732901415257,0.9238,3592.2,3590.6,7.14794]
[1732901415448,2.78406,3591.9,3590.9,2.80629048]
[1732901415657,2.78406,3591.9,3590.9,5.59109048]
[1732901416183,2.78406,3591.9,3590.9,2.80629048]
[1732901416333,2.78389,3592.1,3590.9,3.80171253]
[1732901416686,2.78389,3592.1,3591.0,2.7847]
[1732901416915,2.78396,3592.0,3590.9,3.80171253]
[1732901417238,2.78405,3591.9,3590.9,3.80171253]
[1732901417438,2.78417,3591.8,3590.9,3.80171253]
[1732901417757,2.7842,3591.7,3590.9,3.80171253]
[1732901418065,2.78407,3591.9,3590.9,3.80171253]
[1732901418455,2.78412,3591.8,3590.9,3.80171253]
[1732901419137,0.56275258,3591.9,3591.0,0.65866625]
[1732901419337,3.34680258,3591.9,3591.0,0.65866625]
[1732901419550,2.78421,3591.7,3591.0,0.65866625]
[1732901419752,2.78421,3591.7,3590.6,7.14794]
[1732901419753,0.56275258,3591.9,3590.6,4.3629]
[1732901419939,2.78441,3591.5,3590.6,1.3629]
[1732901420439,2.78479,3591.0,3589.9,1.06572385]
[1732901420751,2.78479,3591.0,3590.0,1.325]
[1732901420983,0.9319,3591.5,3590.0,1.325]
[1732901420984,2.78503,3590.7,3590.0,1.325]
[1732901421677,3.33793526,3590.9,3590.0,1.325]
[1732901421876,2.78503,3590.7,3590.0,1.325]
[1732901422823,2.78489,3590.8,3590.0,1.325]
[1732901423045,2.78489,3590.8,3590.0,2.036074]
[1732901423183,0.9319,3591.5,3590.2,2.78535]
[1732901423385,0.1,3592.8,3590.9,1.3729]
[1732901423386,0.9319,3592.8,3590.9,1.3729]
[1732901423586,2.78423,3591.7,3590.9,1.3729]
[1732901423805,0.5629197,3591.6,3590.9,1.3729]
[1732901424023,0.9319,3592.5,3591.3,4.3533]
[1732901424191,2.78327,3592.9,3591.6,5.59055048]
[1732901424404,0.9319,3593.3,3591.8,1.3533]
[1732901424584,2.7828,3593.5,3591.8,1.3533]
[1732901425000,2.78342,3592.7,3591.8,1.3533]
[1732901425213,0.9319,3593.6,3592.4,2.80629048]
[1732901425414,2.7828,3593.5,3592.5,1.3272]
[1732901425620,0.9319,3593.6,3592.5,1.3272]
[1732901425831,2.78341,3592.8,3592.5,1.3272]
[1732901426208,2.78344,3592.7,3592.5,1.3272]
[1732901426727,2.78344,3592.7,3592.1,1.3744]
[1732901427096,2.78334,3592.8,3592.1,1.3744]
[1732901427293,2.78342,3592.7,3592.1,1.3744]
[1732901427636,2.78369,3592.4,3591.7,1.4004]
[1732901427793,2.7835,3592.6,3591.7,1.4004]
[1732901427989,2.78353,3592.6,3591.7,1.4004]
[1732901428227,2.78334,3592.8,3591.7,1.4004]
[1732901428398,2.78345,3592.7,3591.7,1.4004]
[1732901429094,0.9319,3592.9,3591.7,1.4004]
[1732901429520,3.71517,3592.9,3591.7,1.4004]
[1732901429746,2.78336,3592.8,3591.7,1.4004]
[1732901430232,3.33523955,3593.1,3591.7,2.47242508]
[1732901430431,2.78336,3592.8,3591.7,1.4004]
[1732901430604,0.55207955,3593.1,3591.7,1.4004]
[1732901430803,2.78318,3593.0,3591.7,1.4004]
[1732901431102,2.78366,3592.4,3591.7,1.4004]
[1732901431446,2.78303,3593.2,3591.7,1.4004]
[1732901431654,0.56270713,3592.3,3591.7,1.4004]
[1732901431795,2.78413,3591.8,3591.2,1.394]
[1732901432152,0.56270713,3592.3,3590.4,1.394]
[1732901432293,2.78483,3590.9,3590.4,1.394]
[1732901432496,0.9319,3591.2,3590.4,1.394]
[1732901432695,2.78476,3591.0,3590.4,1.394]
[1732901432891,0.9319,3591.2,3590.4,1.394]
[1732901432892,3.71648,3591.2,3590.4,1.394]
[1732901433123,2.78467,3591.1,3590.4,1.394]
[1732901433549,2.78477,3591.0,3590.4,1.394]
[1732901433773,0.56493524,3591.0,3590.4,1.394]
[1732901434437,2.78448,3591.4,3590.4,1.394]
[1732901434635,0.55039687,3591.1,3590.4,1.394]
[1732901435137,0.55039687,3591.1,3589.6,4.11786]
[1732901435138,2.78474,3591.0,3589.6,4.11786]
[1732901435331,0.55039687,3591.1,3589.6,4.11786]
[1732901435332,3.33506687,3591.1,3589.8,2.78561]
[1732901435657,2.78474,3591.0,3589.7,0.76534408]
[1732901435857,0.55039687,3591.1,3589.9,2.78552]
[1732901436169,0.55039687,3591.1,3590.0,2.7855]
[1732901436457,3.33506687,3591.1,3589.9,5.78555]
[1732901436662,2.78474,3591.0,3589.8,4.2678]
[1732901436837,2.78474,3591.0,3589.9,0.55]
[1732901439240,2.78507,3590.6,3589.8,1.2678]
[1732901439436,2.78494,3590.8,3589.8,1.2678]
[1732901439640,2.78497,3590.7,3589.8,1.2678]
[1732901439963,2.78481,3590.9,3589.8,1.2678]
[1732901440175,2.7851,3590.6,3589.8,1.2678]
[1732901440665,2.78513,3590.5,3589.8,1.2678]
[1732901440832,0.56957332,3590.4,3589.8,1.2678]
[1732901441674,0.56957332,3590.4,3589.9,0.02785365]
[1732901441984,0.56957332,3590.4,3589.8,1.2678]
[1732901442130,0.56957332,3590.4,3589.9,0.02785314]
[1732901442333,2.78475,3591.0,3589.8,1.68558321]
[1732901442680,2.78475,3591.0,3589.9,0.02785196]
[1732901443026,0.55413426,3590.6,3589.8,4.05347]
[1732901443375,2.78406,3591.9,3590.3,4.08558082]
[1732901443525,0.9319,3592.1,3590.6,3.33498]
[1732901443725,2.78418,3591.8,3590.6,0.55]
[1732901443958,2.78419,3591.7,3590.6,1.11448408]
[1732901444171,2.78409,3591.9,3590.6,4.11448408]
[1732901444324,2.78409,3591.9,3590.7,1.274]
[1732901444528,2.78397,3592.0,3590.7,1.274]
[1732901444727,2.78425,3591.7,3590.7,1.274]
[1732901445530,0.55451227,3591.5,3590.7,1.274]
[1732901445770,0.55451227,3591.5,3590.7,2.14635841]
[1732901446285,0.9319,3592.9,3591.3,2.7845]
[1732901446443,0.9319,3592.9,3591.5,3.55]
[1732901446646,2.78343,3592.7,3591.5,3.55]
[1732901446995,3.71517,3592.9,3591.7,2.78412]
[1732901446996,0.9319,3592.9,3591.7,2.78412]
[1732901447183,0.56415257,3592.5,3591.7,3.695965]
[1732901447479,2.78309,3593.2,3592.0,1.2737]
[1732901447694,2.78309,3593.2,3592.1,3.0]
[1732901447841,2.78309,3593.2,3592.0,1.2737]
[1732901447842,3.34170869,3593.0,3592.0,1.2737]
[1732901448255,3.34170869,3593.0,3592.1,3.53558082]
[1732901449156,3.34170869,3593.0,3592.2,0.25934016]
[1732901449402,0.55846869,3593.0,3592.1,3.53558082]
[1732901449638,0.55846869,3593.0,3592.5,3.53558082]
[1732901449905,0.8941,3593.5,3592.6,1.2602]
[1732901450099,3.0,3593.7,3592.6,1.2602]
[1732901450403,2.78223,3594.3,3592.5,3.53558082]
[1732901450404,0.54459334,3593.2,3592.5,3.53558082]
[1732901450559,2.78311,3593.1,3592.5,3.53558082]
[1732901450763,0.54459334,3593.2,3592.2,1.3487]
[1732901450764,2.7832,3593.0,3592.2,1.3487]
[1732901451373,3.32763334,3593.2,3592.2,1.3487]
[1732901451913,2.78318,3593.1,3592.2,1.3487]
[1732901452415,0.54459334,3593.2,3592.2,1.3487]
[1732901452592,0.54459334,3593.2,3592.5,3.53558082]
[1732901455131,2.78205,3594.5,3593.4,1.3752]
[1732901455968,0.54938323,3594.0,3593.4,4.15804]
[1732901456169,2.78172,3594.9,3593.7,3.53558082]
[1732901456585,0.1553416,3595.1,3593.7,3.53558082]
[1732901456586,0.55896193,3594.5,3593.8,4.7176]
[1732901456977,0.55896193,3594.5,3594.1,3.53558082]
[1732901457186,2.78166,3595.0,3594.1,3.53558082]
[1732901457382,2.78172,3594.9,3594.1,3.53558082]
[1732901457594,2.78172,3594.9,3593.2,3.0]
[1732901457595,2.78224,3594.3,3593.2,1.3456]
[1732901457819,3.34298247,3594.6,3593.2,4.541493]
[1732901457996,2.78213,3594.4,3593.2,4.541493]
[1732901458200,0.56102247,3594.6,3593.3,2.78294]
[1732901458400,2.78203,3594.5,3593.2,1.758473]
[1732901458736,0.56102247,3594.6,3593.2,1.758473]
[1732901458872,2.78216,3594.4,3593.2,1.758473]
[1732901459208,2.78225,3594.3,3593.3,1.10772138]
[1732901459800,2.78202,3594.5,3593.3,1.10772138]
[1732901460003,0.56046556,3594.0,3593.3,1.10772138]
[1732901460175,0.56046556,3594.0,3593.2,1.758473]
[1732901460176,0.56046556,3594.0,3593.2,1.3456]
[1732901460577,2.78281,3593.5,3593.2,1.3456]
[1732901460775,2.78241,3594.0,3593.2,1.3456]
[1732901461135,2.78217,3594.4,3593.2,1.3456]
[1732901461136,2.78214,3594.4,3593.2,1.3456]
[1732901461339,2.78223,3594.3,3593.2,1.3456]
[1732901461483,2.78203,3594.5,3593.3,0.76643208]
[1732901461484,2.78228,3594.2,3593.3,0.76643208]
[1732901462179,2.78235,3594.1,3593.3,0.76643208]
[1732901462529,2.78262,3593.8,3593.2,1.3456]
[1732901462819,0.56886894,3594.0,3593.2,1.3456]
[1732901463593,3.35128894,3594.0,3593.2,1.3456]
[1732901463813,0.56886894,3594.0,3593.3,0.02782769]
[1732901464115,0.56886894,3594.0,3593.2,1.3456]
[1732901464326,0.56886894,3594.0,3593.3,0.79425429]
[1732901464535,0.56886894,3594.0,3593.3,0.76642808]
[1732901465110,2.78172,3594.9,3593.6,1.3213]
[1732901465285,2.78193,3594.7,3593.6,1.3213]
[1732901465485,2.78198,3594.6,3593.6,1.3213]
[1732901466030,0.54899165,3594.3,3593.6,1.3213]
[1732901466175,0.54899165,3594.3,3593.9,3.53558082]
[1732901466383,2.78185,3594.8,3594.0,1.3285]
[1732901466582,2.78166,3595.0,3594.0,1.3285]
[1732901467026,2.78173,3594.9,3594.0,1.3285]
[1732901467235,0.57009387,3594.6,3594.0,1.3285]
[1732901467799,3.35204387,3594.6,3594.0,1.3285]
[1732901468130,0.57009387,3594.6,3594.0,1.3285]
[1732901468650,2.78172,3594.9,3594.2,1.2865]
[1732901469807,0.56560134,3594.7,3594.2,1.2865]
[1732901474338,0.1553416,3595.1,3593.6,6.48277348]
[1732901474339,0.1553416,3595.1,3594.4,1.3769]
[1732901474551,0.1553416,3595.1,3595.0,7.69412082]
[1732901474757,0.1553416,3595.1,3595.0,12.2917059]
[1732901475664,0.1553416,3595.1,3595.0,12.5705059]
[1732901476308,0.1553416,3595.1,3595.0,8.54388947]
[1732901476832,0.56426069,3596.3,3595.2,1.379]
[1732901477021,0.56426069,3596.3,3595.8,1.379]
[1732901477211,0.56426069,3596.3,3595.9,0.41667644]
[1732901478461,0.56426069,3596.3,3595.8,1.379]
[1732901479625,0.56426069,3596.3,3595.8,4.15995]
[1732901479960,0.56426069,3596.3,3595.8,1.379]
[1732901480138,2.78084,3596.1,3595.4,1.2866]
[1732901480343,0.56426069,3596.3,3595.4,1.2866]
[1732901480567,0.56426069,3596.3,3595.7,2.78104]
[1732901480718,1.0449,3597.0,3595.7,2.78104]
[1732901480719,1.0449,3597.0,3596.0,2.78086]
[1732901480916,1.0449,3597.0,3595.8,4.10598]
[1732901481118,0.54511245,3596.5,3595.9,2.78089]
[1732901481427,0.54511245,3596.5,3596.0,2.78083]
[1732901481632,0.54511245,3596.5,3595.8,1.325]
[1732901481833,2.78056,3596.4,3595.8,1.325]
[1732901482192,0.54511245,3596.5,3595.8,1.325]
[1732901483529,2.78055,3596.4,3595.8,1.325]
[1732901483738,2.78076,3596.2,3595.3,0.55]
[1732901483970,2.78055,3596.4,3595.4,0.460546]
[1732901484153,2.78064,3596.3,3595.4,0.460546]
[1732901484659,3.32564245,3596.5,3595.4,0.460546]
[1732901484867,2.78071,3596.2,3595.4,0.460546]
[1732901485067,2.78064,3596.3,3595.5,0.4734446]
[1732901485726,2.78072,3596.2,3595.5,0.4734446]
[1732901485936,2.78072,3596.2,3595.2,4.2739]
[1732901486774,2.78057,3596.4,3595.3,2.7814]
[1732901487150,2.78027,3596.8,3595.6,1.9031]
[1732901487345,2.78027,3596.8,3595.8,0.55]
[1732901487539,2.78024,3596.9,3595.8,3.33101]
[1732901487740,2.78024,3596.9,3595.9,0.468411]
[1732901488354,2.78002,3597.1,3596.0,1.3531]
[1732901488680,2.78002,3597.1,3596.0,4.13391]
[1732901489201,0.56399071,3596.5,3596.1,0.02780509]
[1732901489357,0.56399071,3596.5,3596.2,2.7807]
[1732901489542,0.56399071,3596.5,3596.3,0.69424151]
[1732901490237,0.56399071,3596.5,3595.8,0.55]
[1732901490238,2.78068,3596.3,3595.6,1.2952]
[1732901490446,3.34447071,3596.5,3595.6,1.2952]
[1732901490447,0.56399071,3596.5,3595.6,1.2952]
[1732901490634,2.78069,3596.3,3595.6,1.2952]
[1732901490835,0.56399071,3596.5,3595.6,1.2952]
[1732901490836,2.78092,3596.0,3595.6,1.2952]
[1732901491444,2.78072,3596.2,3595.6,1.2952]
[1732901491645,2.7808,3596.1,3595.6,1.2952]
[1732901492076,10.4482238,3604.7,3595.6,1.2952]
[1732901492077,1.0449,3597.9,3595.6,1.2952]
[1732901492289,2.77973,3597.5,3596.3,2.78058]
[1732901492441,2.77973,3597.5,3596.5,1.3306]
[1732901492442,2.77986,3597.3,3596.5,1.3306]
[1732901492647,0.54941386,3596.8,3596.5,1.3306]
[1732901493550,3.82434,3597.9,3596.5,1.3306]
[1732901493551,1.0449,3597.9,3596.5,1.3306]
[1732901493782,2.77963,3597.6,3596.5,1.3306]
[1732901493943,2.77963,3597.6,3596.5,4.11107]
[1732901494145,0.54640947,3597.1,3596.6,0.7447725]
[1732901494388,0.54640947,3597.1,3596.5,1.3306]
[1732901494591,0.54640947,3597.1,3596.0,1.3846]
[1732901495009,2.78024,3596.9,3596.0,1.3846]
[1732901495582,2.78025,3596.8,3596.0,1.3846]
[1732901495787,2.78012,3597.0,3596.0,1.3846]
[1732901495989,2.78041,3596.6,3596.0,2.401157]
[1732901496288,2.78034,3596.7,3596.0,1.3846]
[1732901496794,1.0449,3597.2,3596.0,1.3846]
[1732901496795,2.7803,3596.8,3596.0,1.3846]
[1732901497002,2.78034,3596.7,3596.0,1.3846]
[1732901497283,2.78034,3596.7,3596.1,0.2788]
[1732901497787,0.55869557,3596.4,3596.1,0.2788]
[1732901497945,0.55869557,3596.4,3596.1,0.44514]
[1732901498347,2.7801,3597.0,3596.1,0.44514]
[1732901498852,2.7798,3597.4,3596.1,0.44514]
[1732901499070,1.0449,3597.6,3596.1,0.44514]
[1732901499280,0.54706883,3596.7,3596.2,0.461068]
[1732901500568,0.54706883,3596.7,3596.1,0.44514]
[1732901501453,0.54706883,3596.7,3596.2,2.78071]
[1732901502153,0.54706883,3596.7,3596.1,0.44514]
[1732901502354,0.54706883,3596.7,3596.2,2.78065]
[1732901503152,0.54706883,3596.7,3596.1,0.44514]
[1732901503356,0.54706883,3596.7,3596.1,0.16634]
[1732901503589,0.54706883,3596.7,3596.0,4.16546]
[1732901503904,0.54706883,3596.7,3596.1,2.78078]
[1732901504491,0.54706883,3596.7,3596.0,1.3846]
[1732901504492,0.54706883,3596.7,3596.0,4.16546]
[1732901504655,0.54706883,3596.7,3596.0,1.3846]